fUSD/lending_fUSD_20251123
["ID","MTS","AMOUNT","RATE_DAILY","PERIOD"]
[394677322,1763859052537,-500.0,0.00017272,2]
[394677323,1763859052547,-500.0,0.00017272,2]
[394677324,1763859052556,-500.0,0.00017272,2]
[394677325,1763859052565,-500.0,0.00017272,2]
[394677326,1763859052576,-500.0,0.00017272,2]
[394677327,1763859052585,-616.23,0.00017272,2]
[394677328,1763859052594,-500.0,0.00017272,2]
[394677329,1763859052603,-739.27,0.00017272,2]
[394677330,1763859052613,-814.41,0.00017272,2]
[394677331,1763859052622,-718.3,0.00017272,2]
[394677332,1763859052631,-165.23588719,0.00017272,2]
[394677333,1763859052640,-654.39,0.00017272,2]
[394677334,1763859052649,-500.0,0.00017272,2]
[394677335,1763859052658,-173.42172291,0.00017272,2]
[394677336,1763859052667,-500.0,0.00017272,2]
[394677337,1763859052677,-408.09887184,0.00017272,2]
[394677338,1763859052686,-500.0,0.00017272,2]
[394677339,1763859052695,-385.74531078,0.00017272,2]
[394677340,1763859052705,-500.0,0.00017272,2]
[394677341,1763859052715,-560.48,0.00017272,2]
[394677342,1763859052725,-529.40916826,0.00017272,2]
[394677343,1763859052735,-648.09937597,0.00017272,2]
[394677344,1763859052745,-500.0,0.00017272,2]
[394677345,1763859052756,-500.0,0.00017272,2]
[394677346,1763859052766,-500.0,0.00017272,2]
[394677347,1763859052776,-500.0,0.00017272,2]
[394677348,1763859052786,-500.0,0.00017272,2]
[394677349,1763859052795,-500.0,0.00017272,2]
[394677350,1763859052806,-500.0,0.00017272,2]
[394677351,1763859052815,-500.0,0.00017272,2]
[394677352,1763859052826,-500.0,0.00017272,2]
[394677353,1763859052835,-500.0,0.00017272,2]
[394677354,1763859052844,-644.98,0.00017272,2]
[394677355,1763859052853,-500.0,0.00017272,2]
[394677356,1763859052862,-500.0,0.00017272,2]
[394677357,1763859052871,-500.0,0.00017272,2]
[394677358,1763859052880,-381.39313821,0.00017272,2]
[394677359,1763859052889,-799.78,0.00017272,2]
[394677360,1763859052898,-687.28,0.00017272,2]
[394677361,1763859052907,-785.87,0.00017272,2]
[394677362,1763859052916,-672.3,0.00017272,2]
[394677363,1763859052925,-500.0,0.00017272,2]
[394677364,1763859052933,-636.14,0.00017272,2]
[394677365,1763859052942,-500.0,0.00017272,2]
[394677366,1763859052951,-646.69,0.00017272,2]
[394677367,1763859052960,-966.5,0.00017272,2]
[394677368,1763859052968,-500.0,0.00017272,2]
[394677369,1763859052977,-500.0,0.00017272,2]
[394677370,1763859052986,-743.06,0.00017272,2]
[394677371,1763859052995,-500.0,0.00017272,2]
[394677372,1763859053004,-718.0,0.00017272,2]
[394677373,1763859053012,-500.0,0.00017272,2]
[394677374,1763859053021,-1140.01,0.00017272,2]
[394677375,1763859053030,-500.0,0.00017272,2]
[394677376,1763859053039,-500.0,0.00017272,2]
[394677377,1763859053047,-1296.25,0.00017272,2]
[394677378,1763859053056,-500.0,0.00017272,2]
[394677379,1763859053065,-196.29308121,0.00017272,2]
[394677380,1763859053075,-516.12,0.00017272,2]
[394677381,1763859053085,-500.0,0.00017272,2]
[394677382,1763859053098,-727.74,0.00017272,2]
[394677383,1763859053107,-358.00268719,0.00017272,2]
[394677384,1763859053117,-500.0,0.00017272,2]
[394677385,1763859053126,-856.65,0.00017272,2]
[394677386,1763859053137,-500.0,0.00017272,2]
[394677387,1763859053146,-500.0,0.00017272,2]
[394677388,1763859053154,-500.0,0.00017272,2]
[394677389,1763859053163,-500.0,0.00017272,2]
[394677390,1763859053174,-500.0,0.00017272,2]
[394677391,1763859053183,-300.0,0.00017272,2]
[394677392,1763859053192,-500.0,0.00017272,2]
[394677393,1763859053201,-500.0,0.00017272,2]
[394677394,1763859053210,-500.0,0.00017272,2]
[394677395,1763859053219,-500.0,0.00017272,2]
[394677396,1763859053228,-500.0,0.00017272,2]
[394677397,1763859053238,-500.0,0.00017272,2]
[394677398,1763859053247,-552.3,0.00017272,2]
[394677399,1763859053256,-500.0,0.00017272,2]
[394677400,1763859053264,-629.68,0.00017272,2]
[394677401,1763859053273,-500.0,0.00017272,2]
[394677402,1763859053282,-571.73,0.00017272,2]
[394677403,1763859053291,-500.0,0.00017272,2]
[394677404,1763859053301,-526.48911156,0.00017272,2]
[394677405,1763859053310,-500.0,0.00017272,2]
[394677406,1763859053318,-500.0,0.00017272,2]
[394677407,1763859053327,-500.0,0.00017272,2]
[394677408,1763859053336,-500.0,0.00017272,2]
[394677409,1763859053345,-500.0,0.00017272,2]
[394677410,1763859053354,-500.0,0.00017272,2]
[394677411,1763859053363,-500.0,0.00017272,2]
[394677412,1763859053371,-500.0,0.00017272,2]
[394677413,1763859053380,-500.0,0.00017272,2]
[394677414,1763859053389,-500.0,0.00017272,2]
[394677415,1763859053398,-798.11,0.00017272,2]
[394677416,1763859053407,-714.05,0.00017272,2]
[394677417,1763859053416,-500.0,0.00017272,2]
[394677418,1763859053425,-500.0,0.00017272,2]
[394677419,1763859053435,-500.0,0.00017272,2]
[394677420,1763859053444,-500.0,0.00017272,2]
[394677421,1763859053453,-529.05,0.00017272,2]
[394677422,1763859053463,-500.0,0.00017272,2]
[394677423,1763859053473,-500.0,0.00017272,2]
[394677424,1763859053482,-599.93,0.00017272,2]
[394677425,1763859053492,-1130.17,0.00017272,2]
[394677426,1763859053501,-546.39,0.00017272,2]
[394677427,1763859053510,-733.84,0.00017272,2]
[394677428,1763859053520,-1014.32,0.00017272,2]
[394677429,1763859053529,-500.0,0.00017272,2]
[394677430,1763859053539,-500.0,0.00017272,2]
[394677431,1763859053549,-500.0,0.00017272,2]
[394677432,1763859053559,-500.0,0.00017272,2]
[394677433,1763859053568,-652.15,0.00017272,2]
[394677434,1763859053578,-500.0,0.00017272,2]
[394677435,1763859053587,-624.02,0.00017272,2]
[394677436,1763859053596,-1139.07,0.00017272,2]
[394677437,1763859053606,-500.0,0.00017272,2]
[394677438,1763859053615,-550.41846571,0.00017272,2]
[394677439,1763859053625,-511.86,0.00017272,2]
[394677440,1763859053635,-500.0,0.00017272,2]
[394677441,1763859053644,-500.0,0.00017272,2]
[394677442,1763859053654,-500.0,0.00017272,2]
[394677443,1763859053663,-500.0,0.00017272,2]
[394677444,1763859053673,-571.46,0.00017272,2]
[394677445,1763859053683,-1000.0,0.00017272,2]
[394677446,1763859053692,-880.94,0.00017272,2]
[394677447,1763859053702,-720.28,0.00017272,2]
[394677448,1763859053711,-500.0,0.00017272,2]
[394677449,1763859053721,-500.0,0.00017272,2]
[394677450,1763859053731,-500.0,0.00017272,2]
[394677451,1763859053741,-500.0,0.00017272,2]
[394677452,1763859053750,-766.53,0.00017272,2]
[394677453,1763859053760,-951.4,0.00017272,2]
[394677454,1763859053770,-1456.65,0.00017272,2]
[394677455,1763859053779,-636.28,0.00017272,2]
[394677456,1763859053789,-885.8,0.00017272,2]
[394677457,1763859053798,-500.0,0.00017272,2]
[394677458,1763859053808,-538.43,0.00017272,2]
[394677459,1763859053818,-500.0,0.00017272,2]
[394677460,1763859053828,-540.21,0.00017272,2]
[394677461,1763859053837,-554.23,0.00017272,2]
[394677462,1763859053847,-500.0,0.00017272,2]
[394677463,1763859053857,-500.0,0.00017272,2]
[394677464,1763859053867,-500.0,0.00017272,2]
[394677465,1763859053877,-500.0,0.00017272,2]
[394677466,1763859053886,-500.0,0.00017272,2]
[394677467,1763859053897,-500.0,0.00017272,2]
[394677468,1763859053906,-500.0,0.00017272,2]
[394677469,1763859053916,-998.19,0.00017272,2]
[394677470,1763859053925,-500.0,0.00017272,2]
[394677471,1763859053935,-500.0,0.00017272,2]
[394677472,1763859053945,-500.0,0.00017272,2]
[394677473,1763859053954,-500.0,0.00017272,2]
[394677474,1763859053964,-523.63,0.00017272,2]
[394677475,1763859053973,-536.35,0.00017272,2]
[394677476,1763859053982,-500.0,0.00017272,2]
[394677477,1763859053992,-500.0,0.00017272,2]
[394677478,1763859054001,-500.0,0.00017272,2]
[394677479,1763859054011,-500.0,0.00017272,2]
[394677480,1763859054020,-437.09356818,0.00017272,2]
[394677481,1763859054029,-500.0,0.00017272,2]
[394677482,1763859054160,-500.0,0.00017272,2]
[394677483,1763859054172,-500.0,0.00017272,2]
[394677484,1763859054181,-500.0,0.00017272,2]
[394677485,1763859054191,-500.0,0.00017272,2]
[394677486,1763859054200,-500.0,0.00017272,2]
[394677487,1763859054209,-500.0,0.00017272,2]
[394677488,1763859054218,-500.0,0.00017272,2]
[394677489,1763859054228,-688.34,0.00017272,2]
[394677490,1763859054237,-500.0,0.00017272,2]
[394677491,1763859054246,-588.17,0.00017272,2]
[394677492,1763859054256,-1595.92,0.00017272,2]
[394677493,1763859054266,-500.0,0.00017272,2]
[394677494,1763859054275,-500.0,0.00017272,2]
[394677495,1763859054285,-500.0,0.00017272,2]
[394677496,1763859054295,-500.0,0.00017272,2]
[394677497,1763859054305,-500.0,0.00017272,2]
[394677498,1763859054314,-500.0,0.00017272,2]
[394677499,1763859054324,-731.02,0.00017272,2]
[394677500,1763859054334,-500.0,0.00017272,2]
[394677501,1763859054343,-627.65,0.00017272,2]
[394677502,1763859054353,-500.0,0.00017272,2]
[394677503,1763859054363,-513.94893374,0.00017272,2]
[394677504,1763859054373,-1023.17,0.00017272,2]
[394677505,1763859054382,-500.0,0.00017272,2]
[394677506,1763859054391,-625.11,0.00017272,2]
[394677507,1763859054401,-500.0,0.00017272,2]
[394677508,1763859054410,-1018.9,0.00017272,2]
[394677509,1763859054419,-500.0,0.00017272,2]
[394677510,1763859054428,-500.0,0.00017272,2]
[394677511,1763859054438,-544.65,0.00017272,2]
[394677512,1763859054447,-803.63,0.00017272,2]
[394677513,1763859054456,-671.62,0.00017272,2]
[394677514,1763859054466,-730.41,0.00017272,2]
[394677515,1763859054475,-656.14,0.00017272,2]
[394677516,1763859054484,-272.61142787,0.00017272,2]
[394677517,1763859054493,-500.0,0.00017272,2]
[394677518,1763859054502,-500.0,0.00017272,2]
[394677519,1763859054512,-500.0,0.00017272,2]
[394677520,1763859054521,-500.0,0.00017272,2]
[394677521,1763859054532,-500.0,0.00017272,2]
[394677522,1763859054541,-500.0,0.00017272,2]
[394677523,1763859054551,-423.57817068,0.00017272,2]
[394677524,1763859054560,-500.0,0.00017272,2]
[394677525,1763859054569,-159.67434454,0.00017272,2]
[394677526,1763859054578,-500.0,0.00017272,2]
[394677527,1763859054588,-422.41988341,0.00017272,2]
[394677528,1763859054597,-500.0,0.00017272,2]
[394677529,1763859054606,-500.0,0.00017272,2]
[394677530,1763859054616,-500.0,0.00017272,2]
[394677531,1763859054625,-500.0,0.00017272,2]
[394677532,1763859054634,-500.0,0.00017272,2]
[394677533,1763859054645,-500.0,0.00017272,2]
[394677534,1763859054654,-816.21,0.00017272,2]
[394677535,1763859054665,-500.0,0.00017272,2]
[394677536,1763859054675,-500.0,0.00017272,2]
[394677537,1763859054685,-500.0,0.00017272,2]
[394677538,1763859054696,-291.84334637,0.00017272,2]
[394677539,1763859054706,-500.0,0.00017272,2]
[394677540,1763859054715,-500.0,0.00017272,2]
[394677541,1763859054725,-971.55,0.00017272,2]
[394677542,1763859054736,-500.0,0.00017272,2]
[394677543,1763859054745,-1609.79,0.00017272,2]
[394677544,1763859054755,-659.03,0.00017272,2]
[394677545,1763859054764,-525.35,0.00017272,2]
[394677546,1763859054775,-539.0,0.00017272,2]
[394677547,1763859054784,-675.48,0.00017272,2]
[394677548,1763859054794,-639.88,0.00017272,2]
[394677549,1763859054803,-675.44,0.00017272,2]
[394677550,1763859054812,-500.0,0.00017272,2]
[394677551,1763859054822,-726.87,0.00017272,2]
[394677552,1763859054831,-535.56,0.00017272,2]
[394677553,1763859054841,-500.0,0.00017272,2]
[394677554,1763859054851,-500.0,0.00017272,2]
[394677555,1763859054860,-500.0,0.00017272,2]
[394677556,1763859054869,-500.0,0.00017272,2]
[394677557,1763859054878,-500.0,0.00017272,2]
[394677558,1763859054888,-500.0,0.00017272,2]
[394677559,1763859054898,-500.0,0.00017272,2]
[394677560,1763859054908,-500.0,0.00017272,2]
[394677561,1763859054917,-5728.0,0.00017273,2]
[394677562,1763859054927,-161.33255324,0.00017273,2]
[394677563,1763859054936,-505.01585357,0.00017273,2]
[394677564,1763859054947,-500.0,0.00017273,2]
[394677565,1763859054956,-500.0,0.00017273,2]
[394677566,1763859054965,-500.0,0.00017273,2]
[394677567,1763859054975,-500.0,0.00017273,2]
[394677568,1763859054983,-500.0,0.00017273,2]
[394677569,1763859054992,-178.99807806,0.00017273,2]
[394677570,1763859055002,-500.0,0.00017273,2]
[394677571,1763859055011,-502.20352986,0.00017273,2]
[394677572,1763859055021,-159.903552,0.00017273,2]
[394677573,1763859055030,-159.903552,0.00017273,2]
[394677574,1763859055039,-159.903552,0.00017273,2]
[394677575,1763859055050,-215.18841804,0.00017273,2]
[394677576,1763859055059,-159.903552,0.00017273,2]
[394677577,1763859055069,-159.903552,0.00017273,2]
[394677578,1763859055079,-159.903552,0.00017273,2]
[394677579,1763859055090,-159.903552,0.00017273,2]
[394677580,1763859055100,-159.903552,0.00017273,2]
[394677581,1763859055109,-159.903552,0.00017273,2]
[394677582,1763859055119,-159.903552,0.00017273,2]
[394677583,1763859055128,-159.903552,0.00017273,2]
[394677584,1763859055139,-500.0,0.00017273,2]
[394677585,1763859055147,-500.0,0.00017273,2]
[394677586,1763859055157,-500.0,0.00017273,2]
[394677587,1763859055167,-500.0,0.00017273,2]
[394677588,1763859055176,-500.0,0.00017273,2]
[394677589,1763859055185,-529.06851033,0.00017273,2]
[394677590,1763859055193,-159.903552,0.00017273,2]
[394677591,1763859055203,-500.0,0.00017273,2]
[394677592,1763859055212,-333.08086197,0.00017273,2]
[394677593,1763859055221,-500.0,0.00017273,2]
[394677594,1763859055231,-505.0755916,0.00017273,2]
[394677595,1763859055240,-502.76504615,0.00017273,2]
[394677596,1763859055249,-500.0,0.00017273,2]
[394677597,1763859055258,-500.0,0.00017273,2]
[394677598,1763859055268,-500.96001496,0.00017273,2]
[394677599,1763859055277,-422.52168536,0.00017273,2]
[394677600,1763859055288,-159.903552,0.00017273,2]
[394677601,1763859055298,-159.903552,0.00017273,2]
[394677602,1763859055307,-159.903552,0.00017273,2]
[394677603,1763859055316,-507.23910877,0.00017273,2]
[394677604,1763859055326,-159.903552,0.00017273,2]
[394677605,1763859055335,-159.903552,0.00017273,2]
[394677606,1763859055344,-159.903552,0.00017273,2]
[394677607,1763859055354,-159.903552,0.00017273,2]
[394677608,1763859055362,-159.903552,0.00017273,2]
[394677609,1763859055371,-500.0,0.00017273,2]
[394677610,1763859055380,-500.0,0.00017273,2]
[394677611,1763859055390,-631.47460592,0.00017273,2]
[394677612,1763859055399,-500.0,0.00017273,2]
[394677613,1763859055409,-500.0,0.00017273,2]
[394677614,1763859055418,-505.05961919,0.00017273,2]
[394677615,1763859055428,-500.0,0.00017273,2]
[394677616,1763859055437,-500.0,0.00017273,2]
[394677617,1763859055447,-500.0,0.00017273,2]
[394677618,1763859055456,-500.0,0.00017273,2]
[394677619,1763859055465,-500.0,0.00017273,2]
[394677620,1763859055475,-576.32,0.00017273,2]
[394677621,1763859055484,-603.51,0.00017273,2]
[394677622,1763859055493,-500.0,0.00017273,2]
[394677623,1763859055502,-380.22224543,0.00017273,2]
[394677624,1763859055511,-500.0,0.00017273,2]
[394677625,1763859055520,-500.0,0.00017273,2]
[394677626,1763859055530,-500.0,0.00017273,2]
[394677627,1763859055539,-500.0,0.00017273,2]
[394677628,1763859055547,-715.93,0.00017273,2]
[394677629,1763859055556,-500.0,0.00017273,2]
[394677630,1763859055566,-500.0,0.00017273,2]
[394677631,1763859055576,-500.0,0.00017273,2]
[394677632,1763859055586,-500.0,0.00017273,2]
[394677633,1763859055595,-500.0,0.00017273,2]
[394677634,1763859055604,-500.0,0.00017273,2]
[394677635,1763859055614,-500.0,0.00017273,2]
[394677636,1763859055623,-500.0,0.00017273,2]
[394677637,1763859055632,-910.87,0.00017273,2]
[394677638,1763859055642,-500.0,0.00017273,2]
[394677639,1763859055651,-647.45,0.00017273,2]
[394677640,1763859055660,-1049.87,0.00017273,2]
[394677641,1763859055669,-500.0,0.00017273,2]
[394677642,1763859055679,-500.0,0.00017273,2]
[394677643,1763859055689,-500.0,0.00017273,2]
[394677644,1763859055698,-500.0,0.00017273,2]
[394677645,1763859055707,-500.0,0.00017273,2]
[394677646,1763859055717,-356.04482594,0.00017273,2]
[394677647,1763859055726,-408.43658105,0.00017273,2]
[394677648,1763859055735,-500.0,0.00017273,2]
[394677649,1763859055744,-500.0,0.00017273,2]
[394677650,1763859055753,-914.28,0.00017273,2]
[394677651,1763859055763,-500.0,0.00017273,2]
[394677652,1763859055773,-340.11319606,0.00017273,2]
[394677653,1763859055782,-500.0,0.00017273,2]
[394677654,1763859055791,-500.0,0.00017273,2]
[394677655,1763859055800,-500.0,0.00017273,2]
[394677656,1763859055809,-543.74,0.00017273,2]
[394677657,1763859055818,-500.0,0.00017273,2]
[394677658,1763859055828,-543.19,0.00017273,2]
[394677659,1763859055837,-500.0,0.00017273,2]
[394677660,1763859055846,-500.0,0.00017273,2]
[394677661,1763859055855,-500.0,0.00017273,2]
[394677662,1763859055864,-687.62,0.00017273,2]
[394677663,1763859055874,-500.0,0.00017273,2]
[394677664,1763859055883,-500.0,0.00017273,2]
[394677665,1763859055892,-592.65545954,0.00017273,2]
[394677666,1763859055901,-500.0,0.00017273,2]
[394677667,1763859055910,-500.0,0.00017273,2]
[394677668,1763859055920,-1585.15,0.00017273,2]
[394677669,1763859055930,-768.99,0.00017273,2]
[394677670,1763859055940,-385.83,0.00017273,2]
[394677671,1763859055950,-500.0,0.00017273,2]
[394677672,1763859055959,-357.09188131,0.00017273,2]
[394677673,1763859055968,-500.0,0.00017273,2]
[394677674,1763859055977,-500.0,0.00017273,2]
[394677675,1763859055986,-500.0,0.00017273,2]
[394677676,1763859056112,-491.74807835,0.00017273,2]
[394677677,1763859056121,-500.0,0.00017273,2]
[394677678,1763859056133,-500.0,0.00017273,2]
[394677679,1763859056142,-1030.53,0.00017273,2]
[394677680,1763859056152,-500.0,0.00017273,2]
[394677681,1763859056162,-500.0,0.00017273,2]
[394677682,1763859056173,-651.08,0.00017273,2]
[394677683,1763859056183,-151.0,0.00017273,2]
[394677684,1763859056192,-151.0,0.00017273,2]
[394677685,1763859056202,-500.0,0.00017273,2]
[394677686,1763859056212,-500.0,0.00017273,2]
[394677687,1763859056221,-606.05,0.00017273,2]
[394677688,1763859056230,-613.83,0.00017273,2]
[394677689,1763859056240,-656.86,0.00017273,2]
[394677690,1763859056250,-500.0,0.00017273,2]
[394677691,1763859056259,-500.0,0.00017273,2]
[394677692,1763859056269,-500.0,0.00017273,2]
[394677693,1763859056278,-984.09,0.00017273,2]
[394677694,1763859056288,-500.0,0.00017273,2]
[394677695,1763859056297,-500.0,0.00017273,2]
[394677696,1763859056306,-500.0,0.00017273,2]
[394677697,1763859056316,-500.0,0.00017273,2]
[394677698,1763859056326,-500.0,0.00017273,2]
[394677699,1763859056335,-162.7,0.00017273,2]
[394677700,1763859056344,-500.0,0.00017273,2]
[394677701,1763859056354,-500.0,0.00017273,2]
[394677702,1763859056363,-1055.65,0.00017273,2]
[394677703,1763859056372,-500.0,0.00017273,2]
[394677704,1763859056382,-500.0,0.00017273,2]
[394677705,1763859056392,-500.0,0.00017273,2]
[394677706,1763859056401,-576.69643752,0.00017273,2]
[394677707,1763859056411,-500.0,0.00017273,2]
[394677708,1763859056421,-500.0,0.00017273,2]
[394677709,1763859056431,-500.0,0.00017273,2]
[394677710,1763859056441,-500.0,0.00017273,2]
[394677711,1763859056450,-500.0,0.00017273,2]
[394677712,1763859056459,-158.02237,0.00017273,2]
[394677713,1763859056470,-500.0,0.00017273,2]
[394677714,1763859056479,-517.22,0.00017273,2]
[394677715,1763859056489,-764.07,0.00017273,2]
[394677716,1763859056498,-500.0,0.00017273,2]
[394677717,1763859056508,-500.0,0.00017273,2]
[394677718,1763859056517,-500.0,0.00017273,2]
[394677719,1763859056527,-537.82,0.00017273,2]
[394677720,1763859056537,-500.0,0.00017273,2]
[394677721,1763859056546,-500.0,0.00017273,2]
[394677722,1763859056556,-573.98,0.00017273,2]
[394677723,1763859056565,-739.16,0.00017273,2]
[394677724,1763859056575,-500.0,0.00017273,2]
[394677725,1763859056584,-868.62,0.00017273,2]
[394677726,1763859056593,-500.0,0.00017273,2]
[394677727,1763859056603,-622.32,0.00017273,2]
[394677728,1763859056612,-500.0,0.00017273,2]
[394677729,1763859056622,-500.0,0.00017273,2]
[394677730,1763859056631,-500.0,0.00017273,2]
[394677731,1763859056641,-500.0,0.00017273,2]
[394677732,1763859056650,-709.34,0.00017273,2]
[394677733,1763859056660,-500.0,0.00017273,2]
[394677734,1763859056669,-777.6,0.00017273,2]
[394677735,1763859056679,-500.0,0.00017273,2]
[394677736,1763859056689,-500.0,0.00017273,2]
[394677737,1763859056698,-500.0,0.00017273,2]
[394677738,1763859056708,-500.0,0.00017273,2]
[394677739,1763859056717,-500.0,0.00017273,2]
[394677740,1763859056727,-500.0,0.00017273,2]
[394677741,1763859056737,-500.0,0.00017273,2]
[394677742,1763859056747,-500.0,0.00017273,2]
[394677743,1763859056757,-500.0,0.00017273,2]
[394677744,1763859056766,-500.0,0.00017273,2]
[394677745,1763859056776,-500.0,0.00017273,2]
[394677746,1763859056786,-500.0,0.00017273,2]
[394677747,1763859056795,-500.0,0.00017273,2]
[394677748,1763859056805,-500.0,0.00017273,2]
[394677749,1763859056815,-500.0,0.00017273,2]
[394677750,1763859056824,-593.61,0.00017273,2]
[394677751,1763859056833,-500.0,0.00017273,2]
[394677752,1763859056843,-547.62,0.00017273,2]
[394677753,1763859056852,-608.83,0.00017273,2]
[394677754,1763859056862,-738.96,0.00017273,2]
[394677755,1763859056871,-500.0,0.00017273,2]
[394677756,1763859056881,-500.0,0.00017273,2]
[394677757,1763859056890,-500.0,0.00017273,2]
[394677758,1763859056900,-500.0,0.00017273,2]
[394677759,1763859056910,-785.12,0.00017273,2]
[394677760,1763859056919,-500.0,0.00017273,2]
[394677761,1763859056929,-573.89,0.00017273,2]
[394677762,1763859056939,-500.0,0.00017273,2]
[394677763,1763859056950,-500.0,0.00017273,2]
[394677764,1763859056960,-500.0,0.00017273,2]
[394677765,1763859056970,-500.0,0.00017273,2]
[394677766,1763859056980,-500.0,0.00017273,2]
[394677767,1763859056989,-518.79,0.00017273,2]
[394677768,1763859056999,-500.0,0.00017273,2]
[394677769,1763859057008,-500.0,0.00017273,2]
[394677770,1763859057018,-500.0,0.00017273,2]
[394677771,1763859057027,-500.0,0.00017273,2]
[394677772,1763859057037,-500.0,0.00017273,2]
[394677773,1763859057046,-500.0,0.00017273,2]
[394677774,1763859057056,-500.0,0.00017273,2]
[394677775,1763859057068,-500.0,0.00017273,2]
[394677776,1763859057080,-1073.31,0.00017273,2]
[394677777,1763859057099,-500.0,0.00017273,2]
[394677778,1763859057109,-500.0,0.00017273,2]
[394677779,1763859057120,-500.0,0.00017273,2]
[394677780,1763859057131,-500.0,0.00017273,2]
[394677781,1763859057144,-500.0,0.00017273,2]
[394677782,1763859057154,-328.11697659,0.00017273,2]
[394677783,1763859057167,-500.0,0.00017273,2]
[394677784,1763859057177,-598.43,0.00017273,2]
[394677785,1763859057186,-500.0,0.00017273,2]
[394677786,1763859057196,-840.08,0.00017273,2]
[394677787,1763859057206,-392.86881744,0.00017273,2]
[394677788,1763859057216,-500.0,0.00017273,2]
[394677789,1763859057226,-668.9,0.00017273,2]
[394677790,1763859057235,-500.0,0.00017273,2]
[394677791,1763859057246,-559.48,0.00017273,2]
[394677792,1763859057255,-151.0,0.00017273,2]
[394677793,1763859057264,-500.0,0.00017273,2]
[394677794,1763859057274,-151.0,0.00017273,2]
[394677795,1763859057285,-734.36,0.00017273,2]
[394677796,1763859057294,-500.0,0.00017273,2]
[394677797,1763859057303,-511.56,0.00017273,2]
[394677798,1763859057312,-500.0,0.00017273,2]
[394677799,1763859057321,-507.97542,0.00017273,2]
[394677800,1763859057330,-743.47,0.00017273,2]
[394677801,1763859057339,-500.0,0.00017273,2]
[394677802,1763859057348,-538.19,0.00017273,2]
[394677803,1763859057357,-500.0,0.00017273,2]
[394677804,1763859057367,-500.0,0.00017273,2]
[394677805,1763859057375,-738.04,0.00017273,2]
[394677806,1763859057385,-500.0,0.00017273,2]
[394677807,1763859057394,-636.2,0.00017273,2]
[394677808,1763859057402,-151.0,0.00017273,2]
[394677809,1763859057411,-500.0,0.00017273,2]
[394677810,1763859057420,-500.0,0.00017273,2]
[394677811,1763859057429,-151.0,0.00017273,2]
[394677812,1763859057438,-500.0,0.00017273,2]
[394677813,1763859057448,-151.0,0.00017273,2]
[394677814,1763859057457,-151.0,0.00017273,2]
[394677815,1763859057466,-303.34869131,0.00017273,2]
[394677816,1763859057476,-646.23,0.00017273,2]
[394677817,1763859057485,-237.799006,0.00017273,2]
[394677818,1763859057495,-500.0,0.00017273,2]
[394677819,1763859057504,-500.0,0.00017273,2]
[394677820,1763859057513,-878.11,0.00017273,2]
[394677821,1763859057523,-2605.7,0.00017273,2]